[Event "NOR-ch Women 2020"]
[Site "Bergen"]
[Date "2020.02.29"]
[Round "3.4"]
[White "Kyrkjebo, Marte B."]
[Black "Kvendseth, Thyra"]
[Result "0-1"]
[ECO "B07"]
[WhiteElo "1887"]
[BlackElo "1889"]
[Annotator "NA"]
[PlyCount "128"]
[EventDate "2020.02.28"]
[EventType "swiss"]
[EventCountry "NOR"]
[SourceTitle "playchess.com"]
[Source "ChessBase"]
[SourceQuality "1"]
[TimeControl "5400+30"]

1. e4 {[%emt 0:00:00]} g6 {[%emt 0:00:00]} 2. d4 {[%emt 0:00:03]} Bg7 {[%emt 0:00:00]} 3. Nc3 {[%emt 0:00:22]} d6 {[%emt 0:00:24]} 4. Be3 {[%emt 0:00:48]} Nf6 {[%emt 0:00:12]} 5. Qd2 {[%emt 0:01:47]} e5 {[%emt 0:03:32]} 6. dxe5 {[%emt 0:07:35] B07: Pirc Defence: Miscellaneous Systems.} dxe5 {[%emt 0:00:10]} 7. Qxd8+ {[%emt 0:00:50]} Kxd8 {[%emt 0:00:07]} 8. O-O-O+ {[%emt 0:01:02]} Nbd7 {[%emt 0:01:05]} 9. Bc4 {[%emt 0:02:05]} Ke7 {[%emt 0:06:42] [#]} 10. Bg5 $146 {[%emt 0:10:28]} ({Predecessor:} 10. Nb5 Ne8 11. Nh3 a6 12. Nc3 Ndf6 13. f4 Bxh3 14. gxh3 Bh6 15. Kb1 Bxf4 16. Bxf4 exf4 {1-0 (36) Kopinits,A (2247)-Tarmastin,L (1744) Austria 2013}) 10... c6 {[%emt 0:01:43]} 11. f3 {[%emt 0:01:18]} Nb6 {[%emt 0:06:41]} 12. Bb3 {[%emt 0:03:46]} h6 {[%emt 0:04:16]} 13. Be3 {[%emt 0:00:49]} Nbd7 {[%emt 0:05:32]} 14. Nge2 {[%emt 0:03:04]} Re8 {[%emt 0:06:03]} 15. Rd2 {[%emt 0:06:06]} Kf8 {[%emt 0:01:12]} 16. Rhd1 {[%emt 0:02:40]} Kg8 {[%emt 0:02:40]} 17. Na4 {[%emt 0:08:59]} Bf8 {[%emt 0:01:43]} 18. a3 {[%emt 0:04:21]} b5 {[%emt 0:04:02]} 19. Nac3 {[%emt 0:01:15]} a5 {[%emt 0:01:05]} 20. Ng3 {[%emt 0:09:53]} Nc5 {[%emt 0:03:21]} 21. Ba2 {[%emt 0:05:26]} b4 {[%emt 0:01:43]} 22. Nb1 {[%emt 0:10:18]} Ba6 {[%emt 0:05:35]} 23. Rf2 {[%emt 0:01:49]} Kg7 {[%emt 0:02:56]} 24. Nd2 {[%emt 0:08:11]} bxa3 {[%emt 0:05:22]} 25. bxa3 {[%emt 0:00:36]} Red8 {[%emt 0:02:15]} 26. Nb1 {[%emt 0:02:49]} Rdb8 {[%emt 0:01:22]} 27. Ne2 {[%emt 0:00:44]} Na4 {[%emt 0:00:37]} 28. Bb3 $17 {[%emt 0:00:42]} Nc5 {[%emt 0:00:15]} 29. Ba2 {[%emt 0:00:19]} Rb7 {[%emt 0:01:43]} 30. Nec3 {[%emt 0:00:43]} Rab8 {[%emt 0:00:26]} 31. Kd2 {[%emt 0:01:18]} g5 {[%emt 0:04:40]} 32. Ke1 {[%emt 0:00:52]} Nh5 {[%emt 0:01:40]} 33. g3 {[%emt 0:01:12]} Nf6 {[%emt 0:00:17]} 34. h3 {[%emt 0:01:44]} Nh5 {[%emt 0:00:58]} 35. Rg2 {[%emt 0:00:24]} Nd7 {[%emt 0:02:05]} 36. Kf2 {[%emt 0:01:21]} Nb6 {[%emt 0:00:59]} 37. Kg1 {[%emt 0:01:18]} Nc4 {[%emt 0:02:15]} 38. Bc1 {[%emt 0:00:27]} Bc5+ {[%emt 0:00:19]} 39. Kh2 {[%emt 0:00:18]} Bd4 {[%emt 0:02:25]} 40. Re1 {[%emt 0:01:09]} Kh7 {[%emt 0:01:49]} 41. Kh1 {[%emt 0:00:40]} Ng7 {[%emt 0:00:50]} 42. Bxc4 {[%emt 0:00:36]} Bxc4 {[%emt 0:00:07]} 43. Bd2 {[%emt 0:00:30]} Rb2 {[%emt 0:00:55]} 44. Rc1 {[%emt 0:00:24]} Ne6 {[%emt 0:02:10]} 45. Be1 {[%emt 0:00:31]} Be3 {[%emt 0:00:43]} 46. Bd2 {[%emt 0:00:13]} Bd4 {[%emt 0:00:36]} 47. Be1 {[%emt 0:00:12]} Nc5 {[%emt 0:03:00]} 48. Bf2 {[%emt 0:00:52]} Be6 {[%emt 0:01:01]} 49. Bg1 {[%emt 0:00:53]} Bxh3 {[%emt 0:00:17]} 50. Rd2 {[%emt 0:00:27]} Bxc3 {[%emt 0:00:33]} 51. Nxc3 {[%emt 0:00:08]} Nb3 {[%emt 0:00:05]} 52. Rcd1 {[%emt 0:00:48]} Nxd2 {[%emt 0:00:07]} 53. Rxd2 {[%emt 0:00:01]} Be6 {[%emt 0:00:18]} 54. Be3 {[%emt 0:00:55]} R8b7 {[%emt 0:01:19]} 55. Na4 {[%emt 0:00:49]} Rb1+ {[%emt 0:00:18]} 56. Kg2 {[%emt 0:00:12]} Rd7 {[%emt 0:00:33]} 57. Rf2 {[%emt 0:00:53]} Rdd1 {[%emt 0:00:07]} 58. Re2 {[%emt 0:00:26]} Bc4 {[%emt 0:01:03]} 59. Rd2 {[%emt 0:00:34]} Rxd2+ {[%emt 0:00:33]} 60. Bxd2 {[%emt 0:00:02]} Bb5 {[%emt 0:00:13]} 61. Nc5 {[%emt 0:00:30]} Rb2 {[%emt 0:00:11]} 62. Kg1 {[%emt 0:00:58]} Rxc2 {[%emt 0:00:06]} 63. Be3 {[%emt 0:00:15]} Rc3 {[%emt 0:00:14]} 64. Kf2 {[%emt 0:00:38]} Rxa3 {[%emt 0:00:09]} 0-1

[Event "NOR-ch Women 2020"]
[Site "Bergen"]
[Date "2020.02.29"]
[Round "3.5"]
[White "Greibrokk, Ingrid"]
[Black "Kyrkjebo, Hanna B."]
[Result "1/2-1/2"]
[ECO "A25"]
[WhiteElo "1862"]
[BlackElo "1957"]
[Annotator "ChessBase"]
[PlyCount "137"]
[EventDate "2020.02.28"]
[EventType "swiss"]
[EventCountry "NOR"]
[SourceTitle "playchess.com"]
[Source "ChessBase"]
[SourceQuality "1"]
[TimeControl "5400+30"]

1. c4 {[%emt 0:00:00]} e5 {[%emt 0:00:00]} 2. Nc3 {[%emt 0:00:00]} Nf6 {[%emt 0:01:32]} 3. g3 {[%emt 0:00:04]} Nc6 {[%emt 0:01:14]} 4. Bg2 {[%emt 0:00:18]} Bc5 {[%emt 0:03:38]} 5. e3 {[%emt 0:01:13]} d6 {[%emt 0:00:46]} 6. Nge2 {[%emt 0:00:09]} O-O {[%emt 0:01:09]} 7. O-O {[%emt 0:00:09]} Bb6 {[%emt 0:02:26]} 8. b3 {[%emt 0:00:54]} Ne7 {[%emt 0:03:04]} 9. Ba3 {[%emt 0:04:06]} c6 {[%emt 0:03:35]} 10. d4 {[%emt 0:01:08]} Re8 {[%emt 0:04:41]} 11. c5 {[%emt 0:07:01]} dxc5 {[%emt 0:09:50]} 12. dxe5 {[%emt 0:00:13]} Nfd5 {[%emt 0:07:35]} 13. Ne4 {[%emt 0:05:48]} Ng6 {[%emt 0:02:22]} 14. Nxc5 {[%emt 0:01:34]} Nxe5 {[%emt 0:01:21]} 15. Ne4 {[%emt 0:02:26]} Bg4 {[%emt 0:05:48]} 16. h3 {[%emt 0:01:49]} Bf3 {[%emt 0:09:08]} 17. Rc1 {[%emt 0:01:49]} Bxg2 {[%emt 0:04:14]} 18. Kxg2 {[%emt 0:00:33]} Bxe3 {[%emt 0:01:22]} 19. Rc2 {[%emt 0:06:08]} Qb6 {[%emt 0:10:03]} 20. N2c3 {[%emt 0:02:56]} Nxc3 {[%emt 0:02:16]} 21. Rxc3 {[%emt 0:00:31]} Bd4 {[%emt 0:01:27]} 22. Rc2 {[%emt 0:00:28]} Ng6 {[%emt 0:04:14]} 23. Nd6 {[%emt 0:01:04]} Red8 {[%emt 0:00:50]} 24. Qf3 {[%emt 0:02:38]} Qc7 {[%emt 0:03:19]} 25. Nb5 {[%emt 0:00:44]} Qe5 {[%emt 0:01:20]} 26. Nxd4 {[%emt 0:00:57]} Qxd4 {[%emt 0:00:17]} 27. Re1 {[%emt 0:00:37]} Qd5 {[%emt 0:01:28]} 28. Qxd5 {[%emt 0:01:09]} Rxd5 {[%emt 0:00:29]} 29. Rce2 {[%emt 0:00:10]} f6 {[%emt 0:03:02]} 30. Re8+ {[%emt 0:01:23]} Rxe8 {[%emt 0:00:07]} 31. Rxe8+ {[%emt 0:00:03]} Kf7 {[%emt 0:00:10]} 32. Rb8 {[%emt 0:00:20]} Rd7 {[%emt 0:01:10]} 33. h4 {[%emt 0:00:59]} Ne7 {[%emt 0:01:32]} 34. Bxe7 {[%emt 0:02:45]} Rxe7 {[%emt 0:00:12]} 35. Kf3 {[%emt 0:00:35]} Kg6 {[%emt 0:00:46]} 36. Ra8 {[%emt 0:01:39]} b6 {[%emt 0:01:32]} 37. Rc8 {[%emt 0:00:06]} c5 {[%emt 0:02:02]} 38. a4 {[%emt 0:00:06]} Re1 {[%emt 0:04:34]} 39. Rc7 {[%emt 0:00:54]} Rb1 {[%emt 0:00:15]} 40. Rxa7 {[%emt 0:00:03]} Rxb3+ {[%emt 0:00:09]} 41. Ke4 {[%emt 0:00:11]} Ra3 {[%emt 0:02:53]} 42. Ra6 {[%emt 0:00:59]} Rb3 {[%emt 0:01:34]} 43. Kd5 {[%emt 0:00:21]} Rb4 {[%emt 0:01:06]} 44. a5 {[%emt 0:02:24]} Rd4+ {[%emt 0:00:47]} 45. Kc6 {[%emt 0:00:07]} bxa5 {[%emt 0:00:23]} 46. Rxa5 {[%emt 0:00:38]} c4 {[%emt 0:00:39]} 47. Ra4 {[%emt 0:01:22]} Kf5 {[%emt 0:00:23]} 48. Kc5 {[%emt 0:00:58]} Ke5 {[%emt 0:00:36]} 49. Ra2 {[%emt 0:02:11]} Re4 {[%emt 0:00:31]} 50. Rc2 {[%emt 0:01:38]} Kf5 {[%emt 0:00:24]} 51. Rc3 {[%emt 0:00:53]} Ke5 {[%emt 0:00:24]} 52. f3 {[%emt 0:00:57]} Re2 {[%emt 0:00:38]} 53. Rxc4 {[%emt 0:01:21]} Re3 {[%emt 0:00:31]} 54. Rf4 {[%emt 0:00:06]} g6 {[%emt 0:00:37]} 55. Kc6 {[%emt 0:01:07]} h6 {[%emt 0:00:24]} 56. Kd7 {[%emt 0:01:12]} g5 {[%emt 0:00:25]} 57. hxg5 {[%emt 0:01:22]} hxg5 {[%emt 0:00:19]} 58. Rb4 {[%emt 0:01:14]} Rxf3 {[%emt 0:00:07]} 59. Ke7 {[%emt 0:00:42]} f5 {[%emt 0:01:04]} 60. Rb5+ {[%emt 0:00:26]} Ke4 {[%emt 0:00:13]} 61. Kf6 {[%emt 0:00:21]} g4 {[%emt 0:00:35]} 62. Re5+ {[%emt 0:00:41]} Kd3 {[%emt 0:00:38]} 63. Rxf5 {[%emt 0:00:07]} Rxg3 {[%emt 0:00:14]} 64. Kg5 {[%emt 0:00:22]} Rg1 {[%emt 0:00:44]} 65. Re5 {[%emt 0:01:33]} g3 {[%emt 0:01:03]} 66. Kg4 {[%emt 0:00:05]} Kd2 {[%emt 0:00:11]} 67. Kf3 {[%emt 0:00:23]} g2 {[%emt 0:00:29]} 68. Re2+ {[%emt 0:00:20]} Kd1 {[%emt 0:00:31]} 69. Rxg2 {[%emt 0:00:41]} 1/2-1/2

[Event "NOR-ch Women 2020"]
[Site "Bergen"]
[Date "2020.02.29"]
[Round "3.6"]
[White "Mork, Ramona"]
[Black "Hansen, Erle Andrea Marki"]
[Result "0-1"]
[ECO "A08"]
[WhiteElo "1750"]
[BlackElo "1860"]
[Annotator "NA"]
[PlyCount "54"]
[EventDate "2020.02.28"]
[EventType "swiss"]
[EventCountry "NOR"]
[SourceTitle "playchess.com"]
[Source "ChessBase"]
[SourceQuality "1"]
[TimeControl "5400+30"]

1. e4 {[%emt 0:00:00]} c5 {[%emt 0:01:17]} 2. Nf3 {[%emt 0:00:00]} Nc6 {[%emt 0:00:04]} 3. d3 {[%emt 0:00:00]} d5 {[%emt 0:00:08]} 4. Nbd2 {[%emt 0:00:00]} Nf6 {[%emt 0:01:44]} 5. g3 {[%emt 0:02:55]} e5 {[%emt 0:00:21]} 6. Bg2 {[%emt 0:00:29]} Be7 {[%emt 0:02:33]} 7. O-O {[%emt 0:00:18]} O-O {[%emt 0:01:14]} 8. a4 {[%emt 0:01:43]} h6 {[%emt 0:06:02]} 9. Re1 {[%emt 0:02:28]} d4 {[%emt 0:01:43]} 10. Nc4 {[%emt 0:01:18]} Qc7 {[%emt 0:01:24]} 11. h3 {[%emt 0:04:08]} Be6 {[%emt 0:01:02]} 12. g4 {[%emt 0:05:49]} Nh7 {[%emt 0:06:32]} 13. Qe2 {[%emt 0:02:32]} a6 {[%emt 0:05:01]} 14. Ncd2 {[%emt 0:03:24]} b5 {[%emt 0:10:43]} 15. Nf1 {[%emt 0:02:39]} c4 {[%emt 0:05:20]} 16. Bd2 {[%emt 0:03:29]} Rfb8 {[%emt 0:10:50]} 17. axb5 {[%emt 0:05:11]} axb5 {[%emt 0:00:47]} 18. Ng3 {[%emt 0:03:36]} Nb4 {[%emt 0:03:06]} 19. Bxb4 {[%emt 0:05:02]} Bxb4 {[%emt 0:00:07]} 20. Rf1 {[%emt 0:00:54]} Rc8 {[%emt 0:08:32]} 21. Nh4 {[%emt 0:07:47]} Nf8 {[%emt 0:01:28]} 22. Nhf5 {[%emt 0:03:06]} cxd3 {[%emt 0:05:59]} 23. cxd3 {[%emt 0:00:35]} Rxa1 {[%emt 0:00:49]} 24. Rxa1 {[%emt 0:01:08]} Qc2 {[%emt 0:02:11]} 25. Re1 {[%emt 0:12:33]} Bxe1 {[%emt 0:06:36]} 26. Ne7+ {[%emt 0:00:08]} Kh7 {[%emt 0:02:17]} 27. Qxe1 {[%emt 0:02:38]} Qc1 {[%emt 0:00:49]} 0-1

[Event "NOR-ch Women 2020"]
[Site "Bergen"]
[Date "2020.03.01"]
[Round "4.1"]
[White "Stanford, Sheila Barth"]
[Black "Dolzhikova, Olga"]
[Result "0-1"]
[ECO "B06"]
[WhiteElo "2145"]
[BlackElo "2149"]
[Annotator "NA"]
[PlyCount "142"]
[EventDate "2020.02.28"]
[EventType "swiss"]
[EventCountry "NOR"]
[SourceTitle "playchess.com"]
[Source "ChessBase"]
[SourceQuality "1"]
[TimeControl "5400+30"]

1. e4 {[%emt 0:00:37]} g6 {[%emt 0:01:11]} 2. d4 {[%emt 0:00:29]} Bg7 {[%emt 0:00:05]} 3. Nf3 {[%emt 0:00:27]} d6 {[%emt 0:00:27]} 4. h3 {[%emt 0:00:47]} Nd7 {[%emt 0:00:46]} 5. Bc4 {[%emt 0:00:55]} Nb6 {[%emt 0:02:57]} 6. Bb3 {[%emt 0:01:26] B06: Modern Defence.} Nf6 {[%emt 0:06:39]} 7. Qe2 {[%emt 0:01:23] [#]} d5 $146 {[%emt 0:09:12] [#]} ({Predecessor:} 7... c6 8. O-O O-O 9. c3 d5 10. Nbd2 a5 11. a4 Qc7 12. Re1 c5 13. e5 Ne8 14. dxc5 Qxc5 15. Nd4 Be6 16. N2f3 Bd7 17. Bg5 Nc4 18. Bxc4 dxc4 19. Nd2 Rc8 20. Ne4 {1-0 (20) Leventic,I (2490)-Popchev,M (2476) Neum 2005}) 8. exd5 $1 {[%emt 0:01:49]} Nbxd5 {[%emt 0:03:57]} 9. O-O {[%emt 0:10:39]} O-O {[%emt 0:06:42]} 10. c4 {[%emt 0:00:31]} Nb6 {[%emt 0:01:03]} 11. Rd1 {[%emt 0:01:00]} c6 {[%emt 0:10:25]} 12. Bf4 {[%emt 0:02:23]} Bf5 {[%emt 0:03:07]} 13. Nc3 {[%emt 0:01:23]} h6 {[%emt 0:16:00]} (13... a5 $16) 14. Ne5 {[%emt 0:08:13]} g5 {[%emt 0:09:31]} 15. Bh2 {[%emt 0:03:04]} Qc8 {[%emt 0:00:24]} 16. Re1 {[%emt 0:04:49]} Re8 {[%emt 0:01:57]} 17. Rad1 {[%emt 0:01:31]} Nbd7 {[%emt 0:04:17]} 18. g4 {[%emt 0:07:43]} Bh7 {[%emt 0:12:10] [#]} 19. f4 $1 {[%emt 0:03:50]} gxf4 {[%emt 0:02:40]} 20. Bxf4 {[%emt 0:00:07]} c5 {[%emt 0:00:19]} 21. d5 {[%emt 0:01:20]} Nxe5 {[%emt 0:01:31]} 22. Bxe5 {[%emt 0:00:11]} h5 {[%emt 0:01:24]} 23. g5 {[%emt 0:11:04]} Qxh3 {[%emt 0:00:07]} 24. Qg2 {[%emt 0:00:04]} Qxg2+ {[%emt 0:00:54]} 25. Kxg2 {[%emt 0:00:02]} Ng4 {[%emt 0:00:59]} 26. Bxg7 {[%emt 0:00:07]} Kxg7 {[%emt 0:00:07]} 27. Kg3 {[%emt 0:11:35]} Kf8 {[%emt 0:01:44]} (27... Kh8 $11) 28. Rd2 $14 {[%emt 0:02:38]} f6 {[%emt 0:01:37]} 29. Ba4 {[%emt 0:00:59]} Red8 {[%emt 0:00:35]} 30. gxf6 {[%emt 0:10:38]} exf6 {[%emt 0:00:30]} 31. Ne4 {[%emt 0:00:37]} Bxe4 {[%emt 0:01:06]} 32. Rxe4 {[%emt 0:00:01]} Kf7 {[%emt 0:00:31]} 33. Bd1 {[%emt 0:01:05]} f5 {[%emt 0:00:26]} 34. Rf4 {[%emt 0:00:43]} Kg6 {[%emt 0:00:15]} 35. Bc2 {[%emt 0:04:20]} Rf8 {[%emt 0:00:08]} 36. Re2 {[%emt 0:00:17]} Kg5 {[%emt 0:00:57]} 37. Rf1 {[%emt 0:06:00]} f4+ {[%emt 0:00:18]} 38. Kf3 {[%emt 0:00:40]} Rae8 {[%emt 0:00:48]} 39. Rfe1 {[%emt 0:00:01]} Re3+ {[%emt 0:00:16]} 40. Rxe3 {[%emt 0:01:49]} fxe3+ {[%emt 0:00:35]} 41. Ke2 {[%emt 0:00:01]} Rf2+ {[%emt 0:00:52]} 42. Kd3 {[%emt 0:00:00]} Ne5+ {[%emt 0:00:26]} 43. Kc3 {[%emt 0:00:14]} e2 {[%emt 0:00:27]} 44. d6 {[%emt 0:00:26]} Kf6 {[%emt 0:00:28]} 45. Be4 {[%emt 0:00:05]} Ke6 {[%emt 0:00:38]} 46. b3 {[%emt 0:00:40]} b6 {[%emt 0:00:18]} 47. Kd2 {[%emt 0:00:07]} Kxd6 {[%emt 0:00:34]} 48. Rh1 {[%emt 0:02:00]} Rf1 {[%emt 0:00:54]} 49. Kxe2 {[%emt 0:00:24]} Rxh1 {[%emt 0:00:05]} 50. Bxh1 {[%emt 0:00:02]} Ng4 {[%emt 0:00:26]} 51. Be4 {[%emt 0:02:21]} Ke5 {[%emt 0:00:15]} 52. Bg6 {[%emt 0:00:01]} h4 {[%emt 0:01:06]} 53. Kf3 {[%emt 0:00:02]} Nf6 {[%emt 0:00:11]} 54. Ke3 {[%emt 0:00:38]} h3 {[%emt 0:00:26]} 55. Kf3 {[%emt 0:00:00]} Kd4 {[%emt 0:00:29]} 56. Kg3 {[%emt 0:00:54]} Kc3 {[%emt 0:00:08]} 57. Kxh3 {[%emt 0:00:03]} Kb2 {[%emt 0:00:08]} 58. Kh4 {[%emt 0:00:05]} Kxa2 {[%emt 0:00:41]} 59. Kg5 {[%emt 0:00:00]} Nd7 {[%emt 0:00:27]} 60. Kf5 {[%emt 0:00:31]} Kxb3 {[%emt 0:00:20]} 61. Be8 {[%emt 0:00:28]} Nb8 {[%emt 0:00:14]} 62. Ke5 {[%emt 0:00:29]} Kxc4 {[%emt 0:00:31]} 63. Kd6 {[%emt 0:00:02]} b5 {[%emt 0:02:09]} 64. Kc7 {[%emt 0:00:02]} Na6+ {[%emt 0:00:28]} 65. Kb7 {[%emt 0:00:01]} Nb4 {[%emt 0:00:08]} 66. Kxa7 {[%emt 0:00:03]} Nd5 {[%emt 0:00:32]} 67. Bg6 {[%emt 0:01:09]} b4 {[%emt 0:00:35]} 68. Ka6 {[%emt 0:01:37]} b3 {[%emt 0:00:18]} 69. Ka5 {[%emt 0:00:01]} b2 {[%emt 0:00:25]} 70. Bh7 {[%emt 0:01:42]} Nc3 {[%emt 0:00:17]} 71. Bg8+ {[%emt 0:00:01]} Kd4 {[%emt 0:00:13]} 0-1

[Event "NOR-ch Women 2020"]
[Site "Bergen"]
[Date "2020.03.01"]
[Round "4.2"]
[White "Johnsen, Sylvia"]
[Black "Machlik, Monika"]
[Result "1/2-1/2"]
[ECO "B11"]
[WhiteElo "1862"]
[BlackElo "2106"]
[Annotator "ChessBase"]
[PlyCount "91"]
[EventDate "2020.02.28"]
[EventType "swiss"]
[EventCountry "NOR"]
[SourceTitle "playchess.com"]
[Source "ChessBase"]
[SourceQuality "1"]
[TimeControl "5400+30"]

1. e4 {[%emt 0:00:00]} c6 {[%emt 0:00:00]} 2. Nc3 {[%emt 0:00:00]} d5 {[%emt 0:00:00]} 3. Nf3 {[%emt 0:00:00]} Bg4 {[%emt 0:00:00]} 4. h3 {[%emt 0:00:09]} Bxf3 {[%emt 0:00:03]} 5. Qxf3 {[%emt 0:00:07]} e6 {[%emt 0:00:07]} 6. d3 {[%emt 0:00:19]} Nd7 {[%emt 0:00:17]} 7. Bd2 {[%emt 0:00:19]} Bc5 {[%emt 0:00:21]} 8. g4 {[%emt 0:01:50]} Qf6 {[%emt 0:07:21]} 9. Bg2 {[%emt 0:13:56]} Qxf3 {[%emt 0:06:38]} 10. Bxf3 {[%emt 0:00:06]} Ne7 {[%emt 0:00:55]} 11. a3 {[%emt 0:03:36]} Ng6 {[%emt 0:11:29]} 12. h4 {[%emt 0:01:00]} Bd6 {[%emt 0:04:41]} 13. d4 {[%emt 0:09:35]} dxe4 {[%emt 0:06:49]} 14. Nxe4 {[%emt 0:00:38]} Bc7 {[%emt 0:01:35]} 15. O-O-O {[%emt 0:02:57]} Nb6 {[%emt 0:03:20]} 16. h5 {[%emt 0:02:44]} Nf4 {[%emt 0:04:19]} 17. h6 {[%emt 0:00:23]} g6 {[%emt 0:01:36]} 18. Nf6+ {[%emt 0:00:20]} Kd8 {[%emt 0:05:27]} 19. g5 {[%emt 0:05:53]} Nfd5 {[%emt 0:06:14]} 20. Nxd5 {[%emt 0:00:41]} cxd5 {[%emt 0:01:44]} 21. b3 {[%emt 0:00:47]} Bd6 {[%emt 0:04:05]} 22. a4 {[%emt 0:07:31]} Rc8 {[%emt 0:01:57]} 23. Rh3 {[%emt 0:04:14]} Rc7 {[%emt 0:02:45]} 24. a5 {[%emt 0:05:31]} Nc8 {[%emt 0:02:26]} 25. Kb2 {[%emt 0:09:38]} Ne7 {[%emt 0:00:20]} 26. Be2 {[%emt 0:06:16]} Nf5 {[%emt 0:03:17]} 27. c3 {[%emt 0:07:11]} Kc8 {[%emt 0:07:36]} 28. a6 {[%emt 0:05:07]} b6 {[%emt 0:01:08]} 29. Bd3 {[%emt 0:00:20]} Ne7 {[%emt 0:01:46]} 30. f4 {[%emt 0:02:47]} Nc6 {[%emt 0:01:01]} 31. Bb5 {[%emt 0:02:25]} Ne7 {[%emt 0:00:39]} 32. c4 {[%emt 0:01:15]} Kb8 {[%emt 0:09:16]} 33. Rd3 {[%emt 0:00:25]} Rcc8 {[%emt 0:03:14]} 34. Rc1 {[%emt 0:01:03]} Nf5 {[%emt 0:01:03]} 35. b4 {[%emt 0:01:44]} dxc4 {[%emt 0:00:19]} 36. Bxc4 {[%emt 0:00:09]} Ne7 {[%emt 0:01:40]} 37. Kb3 {[%emt 0:02:44]} Rc7 {[%emt 0:01:00]} 38. b5 {[%emt 0:02:28]} Rhc8 {[%emt 0:00:35]} 39. Rcc3 {[%emt 0:00:49]} Nd5 {[%emt 0:01:17]} 40. Bxd5 {[%emt 0:00:08]} Rxc3+ {[%emt 0:00:48]} 41. Rxc3 {[%emt 0:00:05]} Rxc3+ {[%emt 0:00:22]} 42. Kxc3 {[%emt 0:00:07]} exd5 {[%emt 0:00:04]} 43. Kd3 {[%emt 0:00:19]} Kc7 {[%emt 0:00:08]} 44. Ke3 {[%emt 0:00:26]} Kd7 {[%emt 0:00:10]} 45. Kf3 {[%emt 0:00:14]} Ke6 {[%emt 0:00:22] Ke4 Ke5+} 46. Kg4 {[%emt 0:00:20]} 1/2-1/2